fUST/lending_fUST_20250724
["ID","MTS","AMOUNT","RATE_DAILY","PERIOD"]
[374589203,1753363858253,-460.0,0.00021094,2]
[374589204,1753363858263,-290.74670208,0.00021094,2]
[374589206,1753363858273,-217.99723468,0.00021094,2]
[374589207,1753363858282,-460.0,0.00021094,2]
[374589209,1753363858292,-460.0,0.00021094,2]
[374589210,1753363858301,-460.0,0.00021094,2]
[374589212,1753363858311,-1755.19,0.00021094,2]
[374589213,1753363858320,-460.0,0.00021094,2]
[374589215,1753363858331,-460.0,0.00021094,2]
[374589216,1753363858341,-460.0,0.00021094,2]
[374589218,1753363858350,-460.0,0.00021095,2]
[374589219,1753363858360,-460.0,0.00021095,2]
[374589221,1753363858369,-460.0,0.00021095,2]
[374589223,1753363858382,-460.0,0.00021095,2]
[374589224,1753363858392,-460.0,0.00021095,2]
[374589226,1753363858402,-460.0,0.00021095,2]
[374589227,1753363858412,-476.03,0.00021095,2]
[374589229,1753363858423,-460.0,0.00021095,2]
[374589231,1753363858433,-189.64200099,0.00021095,2]
[374589232,1753363858442,-460.0,0.00021095,2]
[374589234,1753363858452,-460.0,0.00021095,2]
[374589235,1753363858462,-460.0,0.00021095,2]
[374589237,1753363858474,-460.0,0.00021095,2]
[374589238,1753363858483,-460.0,0.00021095,2]
[374589240,1753363858493,-460.0,0.00021095,2]
[374589242,1753363858504,-460.0,0.00021095,2]
[374589243,1753363858514,-460.0,0.00021095,2]
[374589245,1753363858523,-460.0,0.00021095,2]
[374589247,1753363858533,-460.0,0.00021095,2]
[374589248,1753363858543,-460.0,0.00021095,2]
[374589250,1753363858553,-460.0,0.00021095,2]
[374589252,1753363858563,-500.97353378,0.00021095,2]
[374589253,1753363858573,-392.00864119,0.00021095,2]
[374589255,1753363858583,-460.0,0.00021095,2]
[374589256,1753363858593,-460.0,0.00021095,2]
[374589258,1753363858603,-460.0,0.00021095,2]
[374589260,1753363858612,-460.0,0.00021095,2]
[374589261,1753363858622,-460.0,0.00021095,2]
[374589263,1753363858632,-468.31810975,0.00021095,2]
[374589264,1753363858642,-460.0,0.00021095,2]
[374589266,1753363858651,-460.0,0.00021095,2]
[374589267,1753363858661,-460.0,0.00021095,2]
[374589269,1753363858670,-460.0,0.00021095,2]
[374589271,1753363858680,-460.0,0.00021095,2]
[374589272,1753363858689,-460.0,0.00021095,2]
[374589274,1753363858698,-460.0,0.00021095,2]
[374589275,1753363858708,-460.0,0.00021095,2]
[374589277,1753363858720,-460.0,0.00021095,2]
[374589278,1753363858729,-188.97474229,0.00021095,2]
[374589280,1753363858738,-460.0,0.00021095,2]
[374589282,1753363858747,-460.0,0.00021095,2]
[374589283,1753363858757,-460.0,0.00021095,2]
[374589285,1753363858767,-918.61,0.00021095,2]
[374589286,1753363858776,-460.0,0.00021095,2]
[374589288,1753363858787,-460.0,0.00021095,2]
[374589290,1753363858797,-153.28,0.00021095,2]
[374589291,1753363858807,-414.05264003,0.00021095,2]
[374589293,1753363858816,-460.0,0.00021095,2]
[374589294,1753363858826,-752.1,0.00021095,2]
[374589296,1753363858835,-1380.86,0.00021095,2]
[374589298,1753363858845,-460.0,0.00021095,2]
[374589299,1753363858855,-450.02873204,0.00021095,2]
[374589301,1753363858865,-1380.41,0.00021095,2]
[374589302,1753363858875,-460.0,0.00021095,2]
[374589304,1753363858884,-460.0,0.00021095,2]
[374589306,1753363858894,-460.0,0.00021095,2]
[374589307,1753363858903,-1201.56,0.00021095,2]
[374589309,1753363858913,-460.0,0.00021095,2]
[374589311,1753363858923,-460.0,0.00021095,2]
[374589312,1753363858933,-460.0,0.00021095,2]
[374589314,1753363858942,-460.0,0.00021095,2]
[374589316,1753363858952,-460.0,0.00021095,2]
[374589317,1753363858962,-460.0,0.00021095,2]
[374589319,1753363858974,-460.0,0.00021095,2]
[374589321,1753363858984,-460.0,0.00021095,2]
[374589322,1753363858993,-500.0,0.00021121,2]
[374589324,1753363859003,-500.0,0.00021149,2]
[374589326,1753363859013,-461.9536709,0.00021173,2]
[374589327,1753363859022,-420.0,0.00021189,2]
[374589329,1753363859032,-474.34331691,0.00021336,2]
[374589331,1753363859041,-500.0,0.00021343,2]
[374589332,1753363859051,-460.0,0.00021367,2]
[374589334,1753363859061,-434.06,0.00021367,2]
[374589336,1753363859070,-460.0,0.00021367,2]
[374589337,1753363859079,-461.26,0.00021367,2]
[374589339,1753363859088,-641.88,0.00021367,2]
[374589340,1753363859097,-311.94360507,0.00021367,2]
[374589342,1753363859107,-1627.42,0.00021367,2]
[374589344,1753363859116,-460.0,0.00021367,2]
[374589345,1753363859125,-460.0,0.00021367,2]
[374589346,1753363859134,-1499.15,0.00021367,2]
[374589348,1753363859144,-553.43,0.00021367,2]
[374589349,1753363859154,-460.0,0.00021367,2]
[374589351,1753363859163,-460.0,0.00021367,2]
[374589353,1753363859183,-460.0,0.00021367,2]
[374589355,1753363859194,-1060.28,0.00021367,2]
[374589356,1753363859204,-1484.03,0.00021368,2]
[374589358,1753363859214,-460.0,0.00021368,2]
[374589359,1753363859226,-460.0,0.00021368,2]
[374589361,1753363859235,-467.63122922,0.00021368,2]
[374589362,1753363859245,-460.0,0.00021368,2]
[374589364,1753363859255,-460.0,0.00021368,2]
[374589366,1753363859265,-518.24,0.00021368,2]
[374589367,1753363859274,-460.0,0.00021368,2]
[374589369,1753363859284,-460.0,0.00021368,2]
[374589371,1753363859294,-460.0,0.00021368,2]
[374589372,1753363859304,-460.0,0.00021368,2]
[374589374,1753363859314,-460.0,0.00021368,2]
[374589376,1753363859324,-460.0,0.00021368,2]
[374589377,1753363859334,-1755.19,0.00021368,2]
[374589379,1753363859345,-460.0,0.00021368,2]
[374589380,1753363859355,-460.0,0.00021368,2]
[374589382,1753363859366,-460.0,0.00021368,2]
[374589384,1753363859376,-271.0987992,0.00021369,2]
[374589385,1753363859392,-460.0,0.00021369,2]
[374589387,1753363859403,-460.0,0.00021369,2]
[374589389,1753363859412,-460.0,0.00021369,2]
[374589390,1753363859423,-460.0,0.00021369,2]
[374589392,1753363859434,-476.03,0.00021369,2]
[374589394,1753363859443,-460.0,0.00021369,2]
[374589395,1753363859456,-199.3,0.00021369,2]
[374589397,1753363859466,-460.0,0.00021369,2]
[374589399,1753363859478,-460.0,0.00021369,2]
[374589409,1753363859634,-258.24552175,0.00021369,2]
[374589410,1753363859645,-344.97,0.00021369,2]
[374589412,1753363859655,-460.0,0.00021369,2]
[374589414,1753363859665,-460.0,0.00021369,2]
[374589415,1753363859674,-460.0,0.00021369,2]
[374589417,1753363859684,-460.0,0.00021369,2]
[374589419,1753363859694,-460.0,0.00021369,2]
[374589420,1753363859704,-460.0,0.00021369,2]
[374589422,1753363859713,-414.24,0.00021369,2]
[374589424,1753363859724,-460.0,0.00021369,2]
[374589425,1753363859734,-460.0,0.00021369,2]
[374589427,1753363859744,-460.0,0.00021369,2]
[374589429,1753363859753,-460.0,0.00021369,2]
[374589430,1753363859767,-460.0,0.00021369,2]
[374589432,1753363859776,-239.56,0.00021369,2]
[374589434,1753363859786,-425.82,0.00021369,2]
[374589435,1753363859795,-460.0,0.00021369,2]
[374589437,1753363859805,-460.0,0.00021369,2]
[374589439,1753363859815,-460.0,0.00021369,2]
[374589440,1753363859824,-460.0,0.00021369,2]
[374589442,1753363859833,-918.61,0.00021369,2]
[374589444,1753363859843,-460.0,0.00021369,2]
[374589446,1753363859852,-460.0,0.00021369,2]
[374589447,1753363859862,-460.0,0.00021369,2]
[374589449,1753363859872,-1380.86,0.00021369,2]
[374589451,1753363859882,-752.1,0.00021369,2]
[374589452,1753363859891,-460.0,0.00021369,2]
[374589454,1753363859901,-1380.41,0.00021369,2]
[374589456,1753363859910,-460.0,0.00021369,2]
[374589457,1753363859922,-460.0,0.00021369,2]
[374589459,1753363859931,-1201.56,0.00021369,2]
[374589460,1753363859940,-460.0,0.00021369,2]
[374589462,1753363859950,-460.0,0.00021369,2]
[374589464,1753363859960,-460.0,0.00021369,2]
[374589465,1753363859970,-460.0,0.00021369,2]
[374589467,1753363859979,-460.0,0.00021369,2]
[374589468,1753363859989,-460.0,0.00021369,2]
[374589470,1753363859999,-460.0,0.00021369,2]
[374589472,1753363860009,-460.0,0.00021369,2]
[374589473,1753363860019,-151.0,0.000215,3]
[374589475,1753363860028,-516.15000208,0.00021508,2]
[374589476,1753363860038,-1000.0,0.00021508,2]
[374589478,1753363860048,-500.0,0.00021535,2]
[374589480,1753363860058,-500.0,0.00021535,2]
[374589481,1753363860068,-500.0,0.00021535,2]
[374589483,1753363860078,-460.0,0.00021641,2]
[374589485,1753363860088,-343.3,0.00021641,2]
[374589486,1753363860098,-641.88,0.00021641,2]
[374589488,1753363860107,-1627.42,0.00021641,2]
[374589490,1753363860116,-460.0,0.00021641,2]
[374589491,1753363860125,-1499.15,0.00021641,2]
[374589493,1753363860135,-553.43,0.00021641,2]
[374589495,1753363860145,-460.0,0.00021641,2]
[374589496,1753363860154,-460.0,0.00021641,2]
[374589498,1753363860164,-387.39978914,0.00021641,2]
[374589500,1753363860174,-1060.28,0.00021641,2]
[374589502,1753363860183,-1484.03,0.00021642,2]
[374589503,1753363860193,-207.75963654,0.00021642,2]
[374589505,1753363860202,-460.0,0.00021642,2]
[374589507,1753363860212,-460.0,0.00021642,2]
[374589508,1753363860226,-518.24,0.00021642,2]
[374589510,1753363860236,-460.0,0.00021642,2]
[374589512,1753363860246,-460.0,0.00021642,2]
[374589513,1753363860256,-460.0,0.00021642,2]
[374589515,1753363860266,-460.0,0.00021642,2]
[374589517,1753363860279,-460.0,0.00021642,2]
[374589519,1753363860289,-460.0,0.00021642,2]
[374589521,1753363860299,-1755.19,0.00021642,2]
[374589522,1753363860310,-460.0,0.00021642,2]
[374589524,1753363860320,-460.0,0.00021642,2]
[374589526,1753363860330,-595.01358414,0.00021643,2]
[374589527,1753363860340,-460.0,0.00021643,2]
[374589529,1753363860350,-363.47691188,0.00021643,2]
[374589530,1753363860360,-476.03,0.00021643,2]
[374589532,1753363860370,-460.0,0.00021643,2]
[374589534,1753363860381,-460.0,0.00021643,2]
[374589535,1753363860392,-231.21,0.00021643,2]
[374589537,1753363860403,-533.43309577,0.00021643,2]
[374589539,1753363860414,-460.0,0.00021643,2]
[374589540,1753363860424,-460.0,0.00021643,2]
[374589542,1753363860435,-460.0,0.00021643,2]
[374589544,1753363860445,-460.0,0.00021643,2]
[374589545,1753363860455,-460.0,0.00021643,2]
[374589547,1753363860467,-460.0,0.00021643,2]
[374589549,1753363860480,-460.0,0.00021643,2]
[374589550,1753363860489,-163.69,0.00021643,2]
[374589552,1753363860499,-460.0,0.00021643,2]
[374589554,1753363860509,-918.61,0.00021643,2]
[374589556,1753363860519,-198.82698452,0.00021643,2]
[374589557,1753363860529,-460.0,0.00021643,2]
[374589558,1753363860539,-460.0,0.00021643,2]
[374589559,1753363860549,-1380.86,0.00021643,2]
[374589560,1753363860559,-752.1,0.00021643,2]
[374589561,1753363860570,-460.0,0.00021643,2]
[374589562,1753363860580,-1380.41,0.00021643,2]
[374589563,1753363860589,-460.0,0.00021643,2]
[374589564,1753363860599,-1201.56,0.00021643,2]
[374589565,1753363860609,-460.0,0.00021643,2]
[374589566,1753363860618,-460.0,0.00021643,2]
[374589567,1753363860629,-460.0,0.00021643,2]
[374589568,1753363860639,-600.78355117,0.00021643,2]
[374589569,1753363860649,-460.0,0.00021643,2]
[374589570,1753363860659,-460.0,0.00021643,2]
[374589571,1753363860669,-500.0,0.00021662,2]
[374589572,1753363860679,-877.72466876,0.00021739,2]
[374589573,1753363860688,-576.27187642,0.00021891,2]
[374589574,1753363860699,-641.88,0.00021915,2]
[374589575,1753363860709,-1627.42,0.00021915,2]
[374589576,1753363860721,-460.0,0.00021915,2]
[374589577,1753363860731,-1499.15,0.00021915,2]
[374589578,1753363860742,-553.43,0.00021915,2]
[374589579,1753363860752,-162.96,0.00021915,2]
[374589580,1753363860762,-460.0,0.00021915,2]
[374589581,1753363860772,-1060.28,0.00021915,2]
[374589582,1753363860782,-1484.03,0.00021916,2]
[374589583,1753363860791,-460.0,0.00021916,2]
[374589584,1753363860802,-460.0,0.00021916,2]
[374589585,1753363860812,-518.24,0.00021916,2]
[374589586,1753363860823,-460.0,0.00021916,2]
[374589587,1753363860833,-460.0,0.00021916,2]
[374589588,1753363860844,-460.0,0.00021916,2]
[374589589,1753363860854,-322.33944575,0.00021916,2]
[374589590,1753363860864,-460.0,0.00021916,2]
[374589591,1753363860874,-1755.19,0.00021916,2]
[374589592,1753363860884,-460.0,0.00021916,2]
[374589593,1753363860894,-460.0,0.00021916,2]
[374589594,1753363860905,-263.88491599,0.00021917,2]
[374589595,1753363860915,-476.03,0.00021917,2]
[374589596,1753363860925,-460.0,0.00021917,2]
[374589597,1753363860935,-460.0,0.00021917,2]
[374589598,1753363860944,-460.0,0.00021917,2]
[374589599,1753363860954,-305.54262655,0.00021917,2]
[374589600,1753363860964,-460.0,0.00021917,2]
[374589601,1753363860979,-460.0,0.00021917,2]
[374589602,1753363860989,-422.64,0.00021917,2]
[374589603,1753363860999,-460.0,0.00021917,2]
[374589604,1753363861008,-460.0,0.00021917,2]
[374589605,1753363861019,-918.61,0.00021917,2]
[374589606,1753363861029,-460.0,0.00021917,2]
[374589607,1753363861039,-460.0,0.00021917,2]
[374589608,1753363861049,-1380.86,0.00021917,2]
[374589609,1753363861058,-752.1,0.00021917,2]
[374589610,1753363861068,-460.0,0.00021917,2]
[374589611,1753363861078,-1380.41,0.00021917,2]
[374589612,1753363861088,-460.0,0.00021917,2]
[374589613,1753363861097,-1201.56,0.00021917,2]
[374589614,1753363861107,-460.0,0.00021917,2]
[374589615,1753363861117,-4029.75,0.00022,7]
[374589616,1753363861126,-151.0,0.00022,10]
[374589617,1753363861136,-1044.76,0.00022,7]
[374589618,1753363861145,-23918.69,0.00022,2]
[374589619,1753363861155,-1140.86,0.00022,7]
[374589620,1753363861173,-500.0,0.00022056,2]
[374589621,1753363861185,-1000.0,0.00022083,2]
[374589622,1753363861196,-1062.77623766,0.0002209,2]
[374589623,1753363861207,-641.88,0.00022189,2]
[374589624,1753363861218,-1627.42,0.00022189,2]
[374589625,1753363861232,-460.0,0.00022189,2]
[374589626,1753363861242,-1499.15,0.00022189,2]
[374589627,1753363861253,-553.43,0.00022189,2]
[374589628,1753363861264,-460.0,0.00022189,2]
[374589629,1753363861274,-1060.28,0.00022189,2]
[374589630,1753363861284,-1484.03,0.0002219,2]
[374589631,1753363861294,-460.0,0.0002219,2]
[374589632,1753363861304,-518.24,0.0002219,2]
[374589633,1753363861315,-460.0,0.0002219,2]
[374589634,1753363861326,-460.0,0.0002219,2]
[374589635,1753363861336,-460.0,0.0002219,2]
[374589636,1753363861346,-460.0,0.0002219,2]
[374589637,1753363861356,-1755.19,0.0002219,2]
[374589638,1753363861366,-460.0,0.0002219,2]
[374589639,1753363861377,-460.0,0.0002219,2]
[374589640,1753363861390,-476.03,0.00022191,2]
[374589641,1753363861400,-460.0,0.00022191,2]
[374589642,1753363861410,-460.0,0.00022191,2]
[374589643,1753363861421,-460.0,0.00022191,2]
[374589644,1753363861431,-381.76,0.00022191,2]
[374589645,1753363861442,-460.0,0.00022191,2]
[374589646,1753363861452,-918.61,0.00022191,2]
[374589647,1753363861465,-460.0,0.00022191,2]
[374589648,1753363861480,-460.0,0.00022191,2]
[374589649,1753363861491,-1380.86,0.00022191,2]
[374589650,1753363861502,-752.1,0.00022191,2]
[374589651,1753363861513,-460.0,0.00022191,2]
[374589652,1753363861525,-1380.41,0.00022191,2]
[374589653,1753363861536,-460.0,0.00022191,2]
[374589654,1753363861548,-1201.56,0.00022191,2]
[374589655,1753363861559,-563.73,0.00022191,2]
[374589656,1753363861569,-500.0,0.00022206,2]
[374589657,1753363861580,-641.88,0.00022463,2]
[374589658,1753363861590,-1627.42,0.00022463,2]
[374589659,1753363861600,-460.0,0.00022463,2]
[374589660,1753363861611,-1499.15,0.00022463,2]
[374589661,1753363861621,-553.43,0.00022463,2]
[374589662,1753363861632,-460.0,0.00022463,2]
[374589663,1753363861642,-1060.28,0.00022463,2]
[374589664,1753363861653,-1484.03,0.00022464,2]
[374589665,1753363861663,-460.0,0.00022464,2]
[374589666,1753363861673,-518.24,0.00022464,2]
[374589667,1753363861683,-509.7,0.00022464,2]
[374589668,1753363861693,-460.0,0.00022464,2]
[374589669,1753363861704,-460.0,0.00022464,2]
[374589670,1753363861715,-460.0,0.00022464,2]
[374589671,1753363861737,-1755.19,0.00022464,2]
[374589672,1753363861747,-460.0,0.00022464,2]
[374589673,1753363861758,-460.0,0.00022464,2]
[374589674,1753363861768,-476.03,0.00022465,2]
[374589675,1753363861778,-460.0,0.00022465,2]
[374589676,1753363861788,-460.0,0.00022465,2]
[374589677,1753363861798,-460.0,0.00022465,2]
[374589678,1753363861810,-460.0,0.00022465,2]
[374589679,1753363861824,-918.61,0.00022465,2]
[374589680,1753363861835,-460.0,0.00022465,2]
[374589681,1753363861845,-1380.86,0.00022465,2]
[374589682,1753363861856,-752.1,0.00022465,2]
[374589683,1753363861867,-1380.41,0.00022465,2]
[374589684,1753363861877,-460.0,0.00022465,2]
[374589685,1753363861887,-1201.56,0.00022465,2]
[374589686,1753363861898,-1668.45,0.00022465,2]
[374589687,1753363861908,-12006.18918259,0.0002249,7]
[374589688,1753363861917,-151.0,0.000226,8]
[374589689,1753363861927,-245.39646125,0.000226,4]
[374589690,1753363861937,-1170.95025122,0.00022631,2]
[374589691,1753363861947,-641.88,0.00022737,2]
[374589692,1753363861957,-1627.42,0.00022737,2]
[374589693,1753363861967,-460.0,0.00022737,2]
[374589694,1753363861983,-1499.15,0.00022737,2]
[374589695,1753363861993,-553.43,0.00022737,2]
[374589696,1753363862003,-460.0,0.00022737,2]
[374589697,1753363862014,-1060.28,0.00022737,2]
[374589698,1753363862024,-1484.03,0.00022738,2]
[374589699,1753363862034,-328.08,0.00022738,2]
[374589700,1753363862044,-518.24,0.00022738,2]
[374589701,1753363862054,-435.68,0.00022738,2]
[374589702,1753363862064,-460.0,0.00022738,2]
[374589703,1753363862074,-460.0,0.00022738,2]
[374589704,1753363862085,-1755.19,0.00022738,2]
[374589705,1753363862254,-460.0,0.00022738,2]
[374589706,1753363862265,-460.0,0.00022738,2]
[374589707,1753363862275,-476.03,0.00022739,2]
[374589708,1753363862286,-460.0,0.00022739,2]
[374589709,1753363862296,-460.0,0.00022739,2]
[374589710,1753363862307,-460.0,0.00022739,2]
[374589711,1753363862318,-460.0,0.00022739,2]
[374589712,1753363862330,-918.61,0.00022739,2]
[374589713,1753363862340,-460.0,0.00022739,2]
[374589714,1753363862351,-1380.86,0.00022739,2]
[374589715,1753363862361,-752.1,0.00022739,2]
[374589716,1753363862373,-1380.41,0.00022739,2]
[374589717,1753363862388,-460.0,0.00022739,2]
[374589718,1753363862406,-1201.56,0.00022739,2]
[374589719,1753363862417,-534.88,0.00022744,6]
[374589720,1753363862427,-500.0,0.00022786,2]
[374589721,1753363862438,-534.88,0.00022844,6]
[374589722,1753363862451,-1711.7267647,0.000229,7]
[374589723,1753363862461,-534.88,0.00022944,4]
[374589724,1753363862475,-1000.0,0.00022986,2]
[374589725,1753363862486,-380.0,0.00022986,2]
[374589726,1753363862497,-1965.8065903,0.00023,2]
[374589727,1753363862507,-346.68603289,0.00023,2]
[374589728,1753363862517,-1336.56704993,0.00023,2]
[374589729,1753363862528,-160.0,0.00023,2]
[374589730,1753363862539,-641.88,0.00023011,2]
[374589731,1753363862550,-1627.42,0.00023011,2]
[374589732,1753363862562,-189.17,0.00023011,2]
[374589733,1753363862573,-1499.15,0.00023011,2]
[374589734,1753363862583,-553.43,0.00023011,2]
[374589735,1753363862593,-460.0,0.00023011,2]
[374589736,1753363862604,-1060.28,0.00023011,2]
[374589737,1753363862614,-1484.03,0.00023012,2]
[374589738,1753363862624,-518.24,0.00023012,2]
[374589739,1753363862636,-460.0,0.00023012,2]
[374589741,1753363862647,-383.16,0.00023012,2]
[374589743,1753363862657,-1755.19,0.00023012,2]
[374589744,1753363862667,-460.0,0.00023012,2]
[374589746,1753363862678,-460.0,0.00023012,2]
[374589748,1753363862690,-476.03,0.00023013,2]
[374589750,1753363862701,-460.0,0.00023013,2]
[374589751,1753363862711,-278.21201434,0.00023013,2]
[374589752,1753363862730,-460.0,0.00023013,2]
[374589753,1753363862742,-460.0,0.00023013,2]
[374589754,1753363862753,-918.61,0.00023013,2]
[374589755,1753363862763,-366.7,0.00023013,2]
[374589756,1753363862773,-1380.86,0.00023013,2]
[374589757,1753363862783,-752.1,0.00023013,2]
[374589758,1753363862793,-1380.41,0.00023013,2]
[374589759,1753363862803,-460.0,0.00023013,2]
[374589760,1753363862813,-1201.56,0.00023013,2]
[374589761,1753363862824,-534.88,0.00023044,5]
[374589762,1753363862835,-587.0,0.00023085,2]
[374589763,1753363862846,-215.0738,0.00023085,2]
[374589764,1753363862857,-630.23415282,0.00023085,2]
[374589765,1753363862867,-534.88,0.00023144,7]
[374589766,1753363862878,-151.0,0.000232,9]
[374589767,1753363862888,-1101.11411408,0.00023224,2]
[374589768,1753363862898,-534.88,0.00023244,6]
[374589769,1753363862908,-641.88,0.00023285,2]
[374589770,1753363862918,-1627.42,0.00023285,2]
[374589771,1753363862927,-1499.15,0.00023285,2]
[374589772,1753363862937,-553.43,0.00023285,2]
[374589773,1753363862947,-460.0,0.00023285,2]
[374589774,1753363862957,-1060.28,0.00023285,2]
[374589775,1753363862966,-1484.03,0.00023286,2]
[374589776,1753363862981,-518.24,0.00023286,2]
[374589777,1753363862990,-222.34,0.00023286,2]
[374589778,1753363863000,-1755.19,0.00023286,2]
[374589779,1753363863010,-460.0,0.00023286,2]
[374589780,1753363863020,-460.0,0.00023286,2]
[374589781,1753363863030,-476.03,0.00023287,2]
[374589782,1753363863041,-460.0,0.00023287,2]
[374589783,1753363863051,-460.0,0.00023287,2]
[374589784,1753363863062,-460.0,0.00023287,2]
[374589785,1753363863072,-918.61,0.00023287,2]
[374589786,1753363863083,-1380.86,0.00023287,2]
[374589787,1753363863093,-752.1,0.00023287,2]
[374589788,1753363863103,-1380.41,0.00023287,2]
[374589789,1753363863114,-460.0,0.00023287,2]
[374589790,1753363863124,-1201.56,0.00023287,2]
[374589791,1753363863134,-23918.69,0.000233,2]
[374589792,1753363863143,-500.0,0.00023317,2]
[374589793,1753363863154,-534.88,0.00023344,5]
[374589794,1753363863164,-1044.76,0.000234,7]
[374589795,1753363863174,-160.0,0.000234,7]
[374589796,1753363863184,-534.88,0.00023444,2]
[374589797,1753363863194,-4029.75,0.000235,7]
[374589798,1753363863205,-534.88,0.00023544,5]
[374589799,1753363863215,-641.88,0.00023559,2]
[374589800,1753363863233,-1627.42,0.00023559,2]
[374589801,1753363863243,-1499.15,0.00023559,2]
[374589802,1753363863254,-553.43,0.00023559,2]
[374589803,1753363863265,-460.0,0.00023559,2]
[374589804,1753363863276,-1060.28,0.00023559,2]
[374589805,1753363863285,-1484.03,0.0002356,2]
[374589806,1753363863296,-518.24,0.0002356,2]
[374589807,1753363863307,-1755.19,0.0002356,2]
[374589808,1753363863319,-460.0,0.0002356,2]
[374589809,1753363863329,-460.0,0.0002356,2]
[374589810,1753363863340,-476.03,0.00023561,2]
[374589811,1753363863350,-4039.93660476,0.00023561,2]
[374589812,1753363863361,-460.0,0.00023561,2]
[374589813,1753363863372,-460.0,0.00023561,2]
[374589814,1753363863383,-460.0,0.00023561,2]
[374589815,1753363863394,-918.61,0.00023561,2]
[374589816,1753363863405,-1380.86,0.00023561,2]
[374589817,1753363863415,-752.1,0.00023561,2]
[374589818,1753363863425,-1380.41,0.00023561,2]
[374589819,1753363863435,-460.0,0.00023561,2]
[374589820,1753363863445,-1201.56,0.00023561,2]
[374589821,1753363863456,-534.88,0.00023644,2]
[374589822,1753363863467,-1140.86,0.000237,7]
[374589823,1753363863481,-193.069815,0.00023744,2]
[374589824,1753363863492,-4000.0,0.0002376,4]
[374589825,1753363863502,-151.0,0.000238,5]
[374589826,1753363863513,-641.88,0.00023833,2]
[374589827,1753363863523,-1627.42,0.00023833,2]
[374589828,1753363863534,-1499.15,0.00023833,2]
[374589829,1753363863545,-553.43,0.00023833,2]
[374589830,1753363863556,-460.0,0.00023833,2]
[374589831,1753363863566,-1060.28,0.00023833,2]
[374589832,1753363863578,-1484.03,0.00023834,2]
[374589833,1753363863588,-518.24,0.00023834,2]
[374589834,1753363863598,-1755.19,0.00023834,2]
[374589835,1753363863608,-460.0,0.00023834,2]
[374589836,1753363863619,-460.0,0.00023834,2]
[374589837,1753363863629,-476.03,0.00023835,2]
[374589838,1753363863639,-460.0,0.00023835,2]
[374589839,1753363863648,-579.25,0.00023835,2]
[374589840,1753363863658,-460.0,0.00023835,2]
[374589841,1753363863668,-918.61,0.00023835,2]
[374589842,1753363863678,-1380.86,0.00023835,2]
[374589843,1753363863688,-752.1,0.00023835,2]
[374589844,1753363863697,-1380.41,0.00023835,2]
[374589845,1753363863707,-460.0,0.00023835,2]
[374589846,1753363863717,-1201.56,0.00023835,2]
[374589847,1753363863730,-500.0,0.00023854,2]
[374589848,1753363863740,-200.0,0.000239,2]
[374589849,1753363863750,-3286.2022343,0.00023998,2]